bitfinex/quotes_ETHUSD_20250625
["timestamp","ask_amount","ask_price","bid_price","bid_amount"]
[1750813722523,8.48250733,2457.0,2456.6,6.812]
[1750813724925,4.41248965,2457.0,2456.6,10.88266356]
[1750813725130,2.49,2457.0,2456.6,10.88259503]
[1750813725315,2.49,2457.0,2456.7,4.07042216]
[1750813725492,2.49,2457.0,2456.9,4.07016972]
[1750813725694,2.49,2457.1,2456.9,10.88103934]
[1750813725894,2.49,2457.1,2457.0,4.07000407]
[1750813726297,2.49,2457.1,2457.0,4.87350407]
[1750813726496,2.49,2457.2,2457.1,4.06983842]
[1750813729124,2.49,2457.2,2457.1,10.87983842]
[1750813729520,2.49,2457.5,2457.1,10.87983842]
[1750813730102,6.55920132,2457.5,2457.1,6.81]
[1750813730730,2.49,2457.5,2457.1,10.87980972]
[1750813731309,6.55920774,2457.5,2457.1,6.81]
[1750813731510,6.55920774,2457.5,2457.0,4.87341968]
[1750813731824,0.7721,2457.3,2456.9,4.07012937]
[1750813732029,0.7721,2457.3,2456.8,0.8122]
[1750813732030,6.55972791,2457.2,2456.8,0.8122]
[1750813732209,6.55972791,2457.2,2456.9,6.809]
[1750813733228,2.49,2457.2,2456.9,6.809]
[1750813733610,2.49,2457.2,2457.0,4.06996053]
[1750813739235,2.49,2457.2,2457.1,4.06983842]
[1750813740805,2.49,2457.2,2457.0,4.06991446]
[1750813741237,2.49,2457.2,2457.1,4.06983842]
[1750813742006,2.49,2457.2,2457.0,4.06992586]
[1750813742226,2.49,2457.2,2457.1,4.06983842]
[1750813742610,2.49,2457.2,2457.0,4.06993258]
[1750813742806,2.49,2457.2,2457.1,6.807]
[1750813744408,12.6213658,2457.5,2457.1,4.317]
[1750813744609,1.66904441,2457.4,2457.1,4.317]
[1750813745034,5.73840127,2457.4,2457.1,4.317]
[1750813746609,5.73840127,2457.4,2457.0,4.06998511]
[1750813746942,1.66904441,2457.4,2457.0,4.06998511]
[1750813747440,5.73839542,2457.4,2457.0,4.06998511]
[1750813749242,5.73839542,2457.4,2456.9,12.69714071]
[1750813749439,5.73839542,2457.4,2456.9,4.07014071]
[1750813749642,5.73839542,2457.4,2456.9,10.87514071]
[1750813751445,4.06952209,2457.3,2456.9,10.87514071]
[1750813752610,5.73847074,2457.4,2456.9,10.87514071]
[1750813752816,8.5521,2457.5,2457.0,4.0699576]
[1750813753018,7.78,2457.5,2457.4,4.06934158]
[1750813753340,7.78,2457.5,2457.4,11.64984158]
[1750813753645,7.78,2457.5,2457.4,14.04747233]
[1750813755264,1.45593431,2457.8,2457.4,14.59747233]
[1750813755436,1.45593431,2457.8,2457.7,4.88314485]
[1750813755637,1.45593431,2457.8,2457.7,11.68514485]
[1750813756027,10.7835,2458.4,2458.0,4.06827171]
[1750813756228,10.7835,2458.4,2458.0,10.87027171]
[1750813756450,0.7835,2458.4,2458.1,4.06814074]
[1750813756756,7.78,2458.5,2458.1,4.06814074]
[1750813757262,7.78,2458.5,2458.0,10.87032055]
[1750813757433,7.78,2458.5,2458.2,4.06799559]
[1750813758123,7.78,2458.5,2458.2,4.06801724]
[1750813758345,7.78,2458.6,2458.2,4.06801724]
[1750813758653,7.78,2458.6,2458.3,4.06781673]
[1750813759366,7.78,2458.6,2458.1,0.8223]
[1750813759522,4.85541447,2458.5,2458.0,4.06830266]
[1750813759722,4.85541447,2458.5,2458.1,6.8]
[1750813760536,4.85541447,2458.5,2458.0,4.06830266]
[1750813760735,4.85541447,2458.5,2458.1,6.8]
[1750813761154,4.0677358,2458.4,2457.8,0.8109]
[1750813761464,4.06818274,2458.1,2457.0,4.06985101]
[1750813761670,0.8058,2457.9,2457.1,4.06983262]
[1750813761850,4.06908945,2457.6,2457.0,4.88075186]
[1750813762157,4.87505158,2457.5,2457.0,10.86891848]
[1750813763769,0.8058,2457.5,2457.0,6.799]
[1750813763921,10.0,2458.0,2457.5,4.06913579]
[1750813763922,0.8058,2458.0,2457.5,4.06913579]
[1750813764126,14.06810064,2458.2,2457.7,4.87952838]
[1750813764625,15.45939106,2458.3,2457.8,4.06867657]
[1750813765159,15.45939106,2458.3,2457.7,0.8108]
[1750813765160,15.45939106,2458.3,2457.7,4.8795562]
[1750813765760,0.8058,2458.3,2457.8,0.55]
[1750813765935,4.06756945,2458.5,2458.0,4.06826149]
[1750813766257,4.06756945,2458.5,2458.0,10.86626149]
[1750813767568,0.8058,2458.6,2458.2,4.06789225]
[1750813767767,10.8058,2458.6,2458.2,4.06789225]
[1750813767941,10.0,2458.6,2458.2,4.06789225]
[1750813768135,4.06727603,2458.7,2458.2,4.06789225]
[1750813768335,10.0,2458.6,2458.2,4.06789225]
[1750813768747,14.06737802,2458.6,2458.1,4.06809464]
[1750813769062,4.06770185,2458.4,2458.0,8.614]
[1750813769439,4.06760924,2458.5,2458.0,8.614]
[1750813769645,4.06760924,2458.5,2458.0,4.06832582]
[1750813769845,4.06760924,2458.5,2458.1,6.797]
[1750813770476,4.06760924,2458.5,2458.0,4.06832582]
[1750813770703,4.0676863,2458.4,2458.0,6.796]
[1750813770971,5.04833509,2458.5,2458.0,10.86433355]
[1750813771348,4.06742856,2458.6,2458.1,4.06816289]
[1750813772991,4.06736243,2458.6,2458.1,4.0681182]
[1750813774888,4.06737672,2458.6,2458.1,4.06809984]
[1750813778756,14.06724444,2458.7,2458.2,4.06800696]
[1750813780055,8.5899,2458.8,2458.2,0.8043]
[1750813780262,7.78,2458.8,2458.3,4.0677512]
[1750813780460,7.78,2458.8,2458.5,4.06748846]
[1750813780701,10.0,2458.8,2458.5,4.06748846]
[1750813783899,7.78,2458.9,2458.5,4.06748846]
[1750813784486,7.78,2459.0,2458.5,0.8114]
[1750813784691,4.88102054,2459.5,2458.9,4.87816318]
[1750813784894,4.0663,2459.3,2458.9,0.8114]
[1750813785271,10.0,2459.3,2458.7,4.06717941]
[1750813785602,4.06659909,2459.1,2458.6,4.83507023]
[1750813785773,4.06659909,2459.1,2458.6,6.58552591]
[1750813785970,4.06671784,2459.0,2458.6,0.7678]
[1750813786171,4.06619769,2459.3,2458.7,4.06710371]
[1750813786481,4.06647262,2459.2,2458.7,4.06710371]
[1750813787087,4.06653244,2459.1,2458.6,4.83506108]
[1750813787801,4.06653244,2459.1,2458.6,4.83508712]
[1750813787989,4.0664542,2459.2,2458.7,4.06716741]
[1750813788903,4.06655178,2459.1,2458.6,6.58543881]
[1750813789905,4.89855178,2459.1,2458.6,6.58543881]
[1750813790905,4.06677921,2459.0,2458.6,2.51817116]
[1750813791275,4.06677921,2459.0,2458.6,6.58551778]
[1750813791478,4.06669553,2459.0,2458.6,6.58551778]
[1750813791681,4.89860399,2459.1,2458.6,6.58550586]
[1750813791879,4.89860399,2459.1,2458.7,1.06529326]
[1750813792408,4.06671088,2459.0,2458.7,1.06529326]
[1750813793308,4.89862303,2459.1,2458.7,1.06529326]
[1750813793679,4.06670431,2459.0,2458.7,1.06529326]
[1750813794494,4.06670431,2459.0,2458.6,2.51817116]
[1750813794710,4.06670431,2459.0,2458.6,6.58550417]
[1750813795323,4.06670431,2459.0,2458.6,2.51817116]
[1750813795624,4.06670431,2459.0,2458.6,0.7678]
[1750813795820,4.06688713,2458.9,2458.4,9.4222]
[1750813796021,4.06688713,2458.9,2458.4,13.48974684]
[1750813796194,4.06688713,2458.9,2458.5,4.06750793]
[1750813797222,4.0672887,2458.7,2458.2,12.66487408]
[1750813797513,4.06616059,2458.7,2458.3,4.06782389]
[1750813797684,4.06710348,2458.8,2458.3,4.06782389]
[1750813800818,4.06718997,2458.7,2458.0,0.8134]
[1750813801016,7.78,2458.8,2458.6,4.06733338]
[1750813801198,7.78,2458.9,2458.6,4.06733338]
[1750813801517,7.78,2458.9,2458.5,4.06742681]
[1750813801705,7.78,2458.9,2458.6,4.06733783]
[1750813802021,7.78,2458.9,2458.5,5.63599647]
[1750813802190,11.8469616,2458.9,2458.5,1.56855398]
[1750813802390,11.8469616,2458.9,2458.4,4.83312556]
[1750813802586,4.0670379,2458.8,2458.4,0.7655]
[1750813802914,0.8073,2458.7,2458.0,12.66331508]
[1750813803119,4.06721203,2458.7,2457.7,1.81]
[1750813803288,4.8753939,2458.2,2457.7,12.66377169]
[1750813803486,0.8073,2458.2,2457.6,0.8179]
[1750813803695,4.06852766,2457.9,2457.6,0.8179]
[1750813803920,4.06852766,2457.9,2457.4,22.43126726]
[1750813804822,4.06842444,2458.0,2457.5,4.06917196]
[1750813805390,4.06842444,2458.0,2457.4,22.43126218]
[1750813805630,0.8073,2458.2,2457.4,12.49384612]
[1750813805834,4.06876567,2457.8,2457.4,9.767]
[1750813806130,4.06876567,2457.8,2457.4,16.552]
[1750813806298,4.06876567,2457.8,2457.4,9.767]
[1750813806494,4.06854504,2457.9,2457.4,13.83632058]
[1750813806495,4.06858371,2457.9,2457.4,13.83632058]
[1750813808112,4.06858371,2457.9,2457.4,9.767]
[1750813808420,4.06870612,2457.8,2457.4,9.767]
[1750813812521,4.06887185,2457.7,2457.4,9.767]
[1750813812821,4.06902394,2457.6,2457.4,9.767]
[1750813813027,4.06902394,2457.6,2457.4,16.551]
[1750813813406,4.06902394,2457.6,2457.3,7.5517]
[1750813813606,4.06902394,2457.6,2457.3,6.784]
[1750813813827,4.06890766,2457.7,2457.3,6.784]
[1750813814026,4.06901523,2457.6,2457.3,6.784]
[1750813814421,4.06901523,2457.6,2457.2,4.06965743]
[1750813814728,4.06901523,2457.6,2457.3,6.784]
[1750813814928,10.814,2458.1,2457.4,0.7869]
[1750813815130,14.06827332,2458.1,2457.6,4.06893686]
[1750813815323,4.06851417,2457.9,2457.6,6.784]
[1750813817501,4.06838616,2458.0,2457.6,6.784]
[1750813817831,4.06869883,2457.8,2457.4,4.8561658]
[1750813819432,4.06869883,2457.8,2457.4,0.7869]
[1750813820134,4.06888652,2457.7,2457.4,0.7869]
[1750813820343,4.06898506,2457.7,2457.2,4.87390166]
[1750813820645,4.06898506,2457.7,2457.3,6.782]
[1750813821518,4.06858496,2457.9,2457.5,4.06916811]
[1750813821713,7.78,2458.0,2457.9,4.06851377]
[1750813821906,7.78,2458.3,2458.0,4.06825793]
[1750813822106,7.78,2458.3,2457.9,10.85037587]
[1750813822305,7.78,2458.3,2457.9,6.782]
[1750813822731,11.84785749,2458.3,2457.9,10.85050735]
[1750813823640,7.78,2458.3,2457.9,10.85050735]
[1750813823938,7.78,2458.3,2458.0,4.82564231]
[1750813824336,7.78,2458.3,2458.1,4.06815635]
[1750813824510,7.78,2458.3,2458.2,4.06801724]
[1750813824704,4.83141835,2458.8,2458.3,4.06783209]
[1750813824910,4.06711835,2458.8,2458.4,0.7574]
[1750813825330,1.67393785,2458.8,2458.2,0.7574]
[1750813825509,7.78,2459.0,2458.5,0.8249]
[1750813825710,4.06695341,2458.9,2458.5,0.8249]
[1750813825922,7.78,2459.0,2458.5,4.89240511]
[1750813826123,11.84671715,2459.0,2458.5,4.89240511]
[1750813826544,4.06688066,2458.9,2458.5,0.8249]
[1750813827547,11.84677245,2459.0,2458.5,0.8249]
[1750813827839,13.51713274,2459.0,2458.5,0.8249]
[1750813828345,13.51713274,2459.0,2458.5,4.89236428]
[1750813829517,4.06691833,2458.9,2458.5,0.8249]
[1750813829737,4.06762665,2458.5,2458.2,0.7758]
[1750813830042,4.06762665,2458.5,2458.0,4.84413485]
[1750813830347,4.06754983,2458.5,2458.0,6.59374308]
[1750813830917,4.06741999,2458.6,2458.1,4.06816726]
[1750813831751,4.0675277,2458.5,2458.0,6.59374442]
[1750813832753,4.06744462,2458.6,2458.1,4.06818031]
[1750813833256,4.06753426,2458.5,2458.0,6.59374331]
[1750813833450,4.06782086,2458.4,2458.0,0.7758]
[1750813833612,4.06743541,2458.6,2458.1,4.06816639]
[1750813833945,4.06753084,2458.5,2458.0,6.59365784]
[1750813834251,4.06795354,2458.3,2458.0,0.7758]
[1750813834413,4.06782372,2458.4,2458.0,0.7758]
[1750813834822,4.06785375,2458.3,2458.0,0.7758]
[1750813835155,4.06774835,2458.4,2458.0,0.7758]
[1750813835955,14.06727165,2458.7,2458.2,4.06799248]
[1750813836128,10.0,2458.8,2458.4,4.06766078]
[1750813836331,12.6352083,2459.0,2458.3,0.7921]
[1750813836332,11.846727,2459.0,2458.5,4.06744169]
[1750813838133,11.846727,2459.0,2458.6,0.7893]
[1750813838334,7.78,2459.0,2458.6,4.85651751]
[1750813838941,11.84670406,2459.0,2458.6,0.7893]
[1750813839752,7.78,2459.0,2458.6,4.85665013]
[1750813840549,11.84670821,2459.0,2458.6,4.85665013]
[1750813840774,11.84670821,2459.0,2458.6,0.7893]
[1750813843060,4.06689866,2458.9,2458.6,0.7893]
[1750813843369,11.84677705,2459.0,2458.6,0.7893]
[1750813843662,4.06688425,2458.9,2458.6,0.7893]
[1750813844164,11.8467859,2459.0,2458.6,0.7893]
[1750813847042,4.06718997,2458.7,2458.6,0.7893]
[1750813847365,4.89554267,2458.8,2458.0,0.7598]
[1750813847563,4.06777653,2458.4,2458.0,0.7598]
[1750813847939,4.06785868,2458.3,2458.0,0.7598]
[1750813848266,13.20492076,2458.6,2457.7,9.765]
[1750813848427,4.06809441,2458.2,2457.8,0.8258]
[1750813848966,4.06844813,2458.0,2457.5,4.86868462]
[1750813849527,4.06844813,2458.0,2457.5,0.7996]
[1750813850131,4.06844813,2458.0,2457.5,4.86875741]
[1750813850551,4.068831,2457.8,2457.5,0.7996]
[1750813850859,4.068831,2457.8,2457.0,0.8056]
[1750813850860,4.06945658,2457.4,2457.0,0.8056]
[1750813851865,4.0692391,2457.5,2457.0,4.87559737]
[1750813852165,4.0692391,2457.5,2457.0,0.8056]
[1750813852347,4.06936981,2457.4,2457.0,0.8056]
[1750813853467,4.06952247,2457.3,2456.9,1.8]
[1750813853967,4.06975522,2457.2,2456.9,1.8]
[1750813854137,7.78,2457.2,2456.8,0.7556]
[1750813854339,4.07034419,2456.8,2456.5,0.7556]
[1750813854553,4.07066863,2456.6,2456.3,0.7556]
[1750813854741,4.07057782,2456.7,2456.3,0.7556]
[1750813856445,4.07041869,2456.8,2456.3,0.7556]
[1750813856778,9.50044777,2457.2,2456.3,1.64543949]
[1750813857068,10.0,2457.1,2456.8,0.8171]
[1750813857874,7.78,2457.2,2456.8,0.8171]
[1750813858173,7.78,2457.2,2456.9,4.0700737]
[1750813859485,7.78,2457.2,2456.9,0.89575036]
[1750813859788,7.78,2457.2,2457.1,4.06983842]
[1750813860080,7.78,2457.2,2457.1,4.89163842]
[1750813860816,4.06870804,2457.8,2457.3,0.8218]
[1750813860945,10.0,2457.9,2457.3,0.8218]
[1750813861285,10.0,2457.9,2457.3,1.31094444]
[1750813861469,4.06869363,2457.8,2457.3,5.38034177]
[1750813862182,7.78,2458.0,2457.7,0.813]
[1750813862371,10.0,2457.9,2457.7,0.813]
[1750813863173,14.06854108,2457.9,2457.7,0.813]
[1750813863487,14.06854108,2457.9,2457.4,4.06925297]
[1750813863488,4.06900197,2457.7,2457.4,0.8069]
[1750813863645,4.06902389,2457.6,2457.2,0.8069]
[1750813864890,0.8094,2457.8,2457.2,4.87653002]
[1750813865046,4.06868871,2457.8,2457.3,4.06942789]
[1750813865895,13.26888141,2457.9,2457.2,0.8069]
[1750813866194,10.0,2457.9,2457.0,1.3569]
[1750813866398,10.0,2457.9,2457.6,0.8069]
[1750813867277,14.0685306,2457.9,2457.6,0.8069]
[1750813867480,10.0,2457.9,2457.6,0.8069]
[1750813868072,14.06860282,2457.9,2457.6,0.8069]
[1750813868295,4.06876208,2457.8,2457.6,0.8069]
[1750813869502,14.06860376,2457.9,2457.6,0.8069]
[1750813869675,17.33740278,2457.9,2457.6,0.8069]
[1750813872602,14.05269902,2457.9,2457.3,0.8311]
[1750813872765,4.06877405,2457.8,2457.3,0.8311]
[1750813872965,4.06898737,2457.7,2457.3,0.8311]
[1750813873194,10.83775003,2457.8,2457.3,4.90055105]
[1750813874294,6.769,2457.8,2457.4,4.06932789]
[1750813874606,10.83771747,2457.8,2457.3,4.90052106]
[1750813875312,10.83771747,2457.8,2457.4,4.06931849]
[1750813876452,6.769,2457.8,2457.4,4.06931849]
[1750813876634,6.769,2457.8,2457.6,4.06899998]
[1750813876823,10.0,2458.0,2457.6,4.06899998]
[1750813877204,6.768,2458.0,2457.7,4.8938431]
[1750813878014,10.0,2458.1,2457.7,0.8251]
[1750813878345,2.52611263,2458.5,2457.7,0.8251]
[1750813878549,10.0,2458.2,2457.7,0.8251]
[1750813878747,14.06801768,2458.2,2457.7,4.89385934]
[1750813879451,10.0,2458.2,2457.7,0.8251]
[1750813879656,4.06863779,2457.9,2457.4,4.06928602]
[1750813879815,4.06863779,2457.9,2457.5,0.7898]
[1750813880144,11.5920878,2458.1,2457.6,4.06891713]
[1750813880349,14.39500606,2458.1,2457.5,4.85889589]
[1750813880649,13.63820606,2458.1,2457.6,4.06891709]
[1750813880942,4.06836987,2458.0,2457.5,4.85889661]
[1750813881148,4.06854398,2457.9,2457.5,0.7898]
[1750813883962,0.7935,2457.9,2457.3,0.7592]
[1750813884144,4.06894885,2457.7,2457.1,4.82901711]
[1750813884450,4.06918355,2457.5,2457.1,0.7592]
[1750813885251,4.06934813,2457.4,2457.1,0.7592]
[1750813885752,4.06952024,2457.3,2456.9,0.7744]
[1750813885951,11.65286879,2457.5,2457.0,4.0699985]
[1750813886259,6.765,2457.5,2457.1,4.06973413]
[1750813887178,10.0,2457.7,2457.3,4.84129177]
[1750813887356,10.0,2457.8,2457.4,4.06923397]
[1750813887652,10.0,2458.0,2457.5,4.84092535]
[1750813887824,10.0,2458.0,2457.7,4.06882503]
[1750813888021,4.86804188,2458.4,2457.5,0.7718]
[1750813888223,14.06801811,2458.2,2457.7,4.06871588]
[1750813888423,0.19980375,2458.1,2457.7,4.06871588]
[1750813888750,4.06818883,2458.1,2457.7,4.06871588]
[1750813888939,14.06807059,2458.2,2457.7,4.06873472]
[1750813889958,4.06821836,2458.1,2457.6,4.06894001]
[1750813890150,4.06837281,2458.0,2457.5,4.84089449]
[1750813890350,4.06830485,2458.1,2457.6,4.06899731]
[1750813890862,4.06830485,2458.1,2457.5,1.66281672]
[1750813890863,0.19991479,2458.0,2457.7,4.06884428]
[1750813891071,0.19991479,2458.0,2457.6,4.06893203]
[1750813891273,4.06830485,2458.1,2457.6,4.06893203]
[1750813891470,14.06809625,2458.2,2457.7,4.06881788]
[1750813891670,4.26810318,2458.1,2457.7,4.06881788]
[1750813891968,4.06819401,2458.1,2457.7,4.06881788]
[1750813892649,10.0,2458.2,2457.8,4.06855854]
[1750813892849,10.0,2458.2,2457.9,0.8182]
[1750813893061,16.763,2458.2,2457.9,0.8182]
[1750813893874,10.0,2458.2,2457.9,0.8182]
[1750813894082,10.0,2458.2,2457.9,1.30687585]
[1750813894241,10.0,2458.2,2457.9,5.37530366]
[1750813894560,10.0,2458.2,2457.9,0.8182]
[1750813894738,10.0,2458.2,2457.9,4.88667356]
[1750813894937,7.78,2458.3,2457.9,0.8182]
[1750813895155,7.78,2458.3,2458.0,4.06826063]
[1750813895477,10.0,2458.4,2458.0,4.06826063]
[1750813895773,10.0,2458.4,2458.0,4.06834825]
[1750813896241,14.06768961,2458.4,2457.9,4.88663299]
[1750813898076,10.0,2458.4,2457.9,1.71374201]
[1750813898278,10.0,2458.4,2458.1,4.06810174]
[1750813899146,10.0,2458.4,2458.0,4.06825321]
[1750813900087,10.0,2458.4,2458.1,4.0681587]
[1750813900284,14.542,2458.5,2457.9,0.8182]
[1750813900460,4.06784236,2458.4,2457.9,4.88669835]
[1750813900646,18.60961309,2458.5,2458.0,4.06832085]
[1750813901659,4.06769686,2458.4,2458.0,4.06832085]
[1750813902188,7.78,2458.5,2458.0,0.8955145]
[1750813902376,9.83289195,2459.2,2458.6,0.7909]
[1750813902377,7.78,2459.1,2458.6,0.7909]
[1750813902589,0.7522,2459.2,2458.9,4.06676266]
[1750813902590,7.78,2459.2,2458.9,4.06676266]
[1750813902749,7.78,2459.3,2459.0,4.06656916]
[1750813903091,14.54,2459.3,2459.1,4.06650032]
[1750813903250,7.78,2459.3,2459.0,4.06665379]
[1750813903581,7.78,2459.3,2458.9,4.87690316]
[1750813903781,7.78,2459.3,2459.0,4.06662782]
[1750813904298,7.78,2459.3,2458.9,5.4195704]
[1750813904774,11.84622554,2459.3,2458.9,1.35279032]
[1750813905074,18.60525125,2459.3,2458.9,0.8101]
[1750813905880,4.06636647,2459.2,2458.7,4.06712378]
[1750813906085,4.06636647,2459.2,2458.4,0.55]
[1750813906086,4.06672771,2459.0,2458.6,0.7907]
[1750813906386,4.06672771,2459.0,2458.4,4.06753818]
[1750813906387,6.43265248,2458.7,2457.6,11.556]
[1750813906682,4.06796788,2458.3,2457.8,4.06864831]
[1750813907053,4.06777464,2458.4,2457.9,4.06849102]
[1750813907250,4.06777464,2458.4,2457.7,2.05760167]
[1750813907598,0.8147,2458.3,2457.7,2.05760167]
[1750813907790,7.5717,2458.3,2457.8,1.36136017]
[1750813907984,6.757,2458.3,2457.7,0.8129]
[1750813908285,2.51473525,2458.6,2457.9,4.0683547]
[1750813908286,4.06763282,2458.5,2457.9,4.0683547]
[1750813908498,4.06794143,2458.3,2457.8,4.06856803]
[1750813908673,4.06849175,2458.0,2457.5,0.8172]
[1750813908872,4.06849175,2458.0,2457.5,4.88627544]
[1750813909172,4.06849175,2458.0,2457.5,6.63653677]
[1750813909382,6.757,2458.2,2457.6,4.06899796]
[1750813909587,10.82509455,2458.2,2457.7,4.06878088]
[1750813910091,10.82509455,2458.2,2457.6,4.06893901]
[1750813910290,6.757,2458.2,2457.5,0.8172]
[1750813910490,6.757,2458.2,2457.8,4.0685765]
[1750813910685,10.0,2458.4,2458.0,4.89060355]
[1750813911783,14.06757368,2458.5,2457.8,4.0685146]
[1750813912099,4.06826769,2458.1,2457.7,0.7777]
[1750813912261,4.06809903,2458.2,2457.7,0.7777]
[1750813912674,4.06824215,2458.1,2457.7,0.7777]
[1750813912997,4.06785176,2458.3,2457.7,1.4413613]
[1750813913184,4.06785176,2458.3,2457.8,4.0685921]
[1750813914408,0.7576,2458.4,2457.7,4.84652231]
[1750813914409,4.82534349,2458.4,2457.9,4.06843868]
[1750813915282,14.06757175,2458.5,2458.0,4.06831304]
[1750813915478,20.82357175,2458.5,2458.1,0.7753]
[1750813916614,16.756,2458.5,2458.1,4.84346095]
[1750813916821,7.78,2458.6,2458.2,4.06793447]
[1750813919815,7.78,2458.6,2458.1,1.66648996]
[1750813920019,7.78,2458.6,2458.1,0.7753]
[1750813920312,11.84743988,2458.6,2458.1,4.84348103]
[1750813920680,7.78,2458.6,2458.1,4.84348103]
[1750813920880,7.78,2458.6,2458.2,4.0679133]
[1750813921104,11.84740999,2458.6,2458.1,4.84342094]
[1750813921281,11.8473678,2458.6,2458.1,5.73457654]
[1750813921600,7.78,2458.6,2458.2,4.06800499]
[1750813921914,10.0,2458.6,2458.2,4.06800499]
[1750813922117,10.0,2458.6,2458.2,4.06796336]
[1750813922316,7.78,2458.7,2458.2,0.55]
[1750813922487,19.59424763,2459.8,2458.6,4.06728228]
[1750813922488,10.82169875,2459.0,2458.6,4.06728228]
[1750813922683,10.0,2458.9,2458.3,0.8211]
[1750813922879,0.7609,2458.8,2458.3,0.8211]
[1750813923087,4.06785624,2458.3,2458.0,0.8211]
[1750813923512,4.06776729,2458.4,2458.0,0.8211]
[1750813924410,4.06776729,2458.4,2457.8,4.06865502]
[1750813924411,0.7535,2458.3,2457.7,0.8055]
[1750813924589,4.06805354,2458.2,2457.7,4.87426328]
[1750813925916,4.06777742,2458.4,2457.9,4.06841441]
[1750813926107,7.5255,2458.5,2457.8,4.0686793]
[1750813926306,4.0676926,2458.4,2457.9,4.06844181]
[1750813928604,4.0678534,2458.3,2457.8,4.06860346]
[1750813928814,4.0678534,2458.3,2457.8,5.14189237]
[1750813929723,6.754,2458.5,2458.1,4.06815865]
[1750813929897,10.82159562,2458.5,2458.0,4.06826051]
[1750813931934,10.82159562,2458.5,2458.1,4.06816277]
[1750813932334,10.82159562,2458.5,2458.0,4.06826791]
[1750813932653,4.06770731,2458.4,2457.9,4.84695962]
[1750813934109,4.06770731,2458.4,2458.0,4.06834501]
[1750813934628,4.06770731,2458.4,2457.9,4.84694206]
[1750813934827,4.06770731,2458.4,2457.9,5.59720171]
[1750813935042,10.82158438,2458.5,2457.9,5.59726763]
[1750813935342,4.06755303,2458.5,2458.0,4.0682752]
[1750813935510,24.533,2458.6,2457.9,5.59721995]
[1750813935511,21.84742871,2458.6,2458.1,4.0681607]
[1750813935714,0.20002442,2458.5,2458.1,0.96654198]
[1750813935947,16.753,2458.7,2458.3,4.81777554]
[1750813936318,0.20002739,2458.6,2458.3,4.81777554]
[1750813936546,16.753,2458.7,2458.3,4.81777554]
[1750813936746,0.20002787,2458.6,2458.3,4.81777554]
[1750813936919,16.753,2458.7,2458.3,4.81777554]
[1750813937114,20.8202243,2458.7,2458.3,0.75]
[1750813937320,0.20002792,2458.6,2458.3,0.75]
[1750813937517,14.0672243,2458.7,2458.3,0.75]
[1750813937743,0.20001646,2458.6,2458.3,0.75]
[1750813937943,14.0672243,2458.7,2458.3,0.75]
[1750813938255,0.20001649,2458.6,2458.3,0.75]
[1750813938452,14.0672243,2458.7,2458.3,0.75]
[1750813938657,0.19998733,2458.6,2458.3,0.75]
[1750813938828,14.0672243,2458.7,2458.3,0.75]
[1750813939153,4.26734933,2458.6,2458.3,0.75]
[1750813939339,4.06736209,2458.6,2458.3,0.75]
[1750813939540,14.06726116,2458.7,2458.3,0.75]
[1750813939846,0.1999861,2458.6,2458.3,0.75]
[1750813940161,14.06726116,2458.7,2458.3,4.81783752]
[1750813940452,0.20001728,2458.6,2458.3,4.81783752]
[1750813940649,14.06726116,2458.7,2458.3,4.81783752]
[1750813940856,0.20001729,2458.6,2458.3,4.81783752]
[1750813941054,14.06726116,2458.7,2458.3,4.81783752]
[1750813941257,0.20001729,2458.6,2458.3,0.75]
[1750813941445,14.06726116,2458.7,2458.3,0.75]
[1750813941646,0.20001729,2458.6,2458.3,0.75]
[1750813941827,14.06726116,2458.7,2458.3,0.75]
[1750813942027,0.20000506,2458.6,2458.3,0.75]
[1750813942229,4.06736565,2458.6,2458.0,0.8197]
[1750813942459,4.26765157,2458.5,2458.0,4.88796786]
[1750813942659,4.06760291,2458.5,2458.0,5.78362176]
[1750813944557,4.06760291,2458.5,2458.1,4.06817776]
[1750813944859,14.06720878,2458.7,2458.2,4.0678921]
[1750813945068,0.20005898,2458.6,2458.2,4.0678921]
[1750813945268,0.20005933,2458.5,2458.2,4.0678921]
[1750813945441,14.06720878,2458.7,2458.2,4.0678921]
[1750813945643,0.2000902,2458.6,2458.2,4.0678921]
[1750813945972,14.06721176,2458.7,2458.4,0.802]
[1750813946270,0.20009103,2458.6,2458.4,0.802]
[1750813946565,14.06721176,2458.7,2458.4,0.802]
[1750813946739,0.20009133,2458.6,2458.4,0.802]
[1750813946941,14.06708716,2458.8,2458.4,0.802]
[1750813947151,0.20009175,2458.7,2458.4,0.802]
[1750813947456,0.20009175,2458.6,2458.4,0.802]
[1750813947759,4.06721397,2458.7,2458.2,5.05307761]
[1750813947943,4.06721397,2458.7,2458.2,1.78714238]
[1750813947944,4.26745572,2458.6,2458.2,1.78714238]
[1750813948143,4.06738008,2458.6,2458.2,1.78714238]
[1750813948660,4.06738008,2458.6,2458.2,0.802]
[1750813948961,4.06738008,2458.6,2458.2,4.87001447]
[1750813949166,4.06738008,2458.6,2458.2,0.802]
[1750813949642,0.20006355,2458.5,2458.2,0.802]
[1750813949842,4.06738008,2458.6,2458.2,0.802]
[1750813950066,0.2000637,2458.5,2458.2,0.802]
[1750813950267,4.06727509,2458.7,2458.2,4.87000075]
[1750813950561,0.20006374,2458.6,2458.2,4.87000075]
[1750813950862,4.06727509,2458.7,2458.2,4.87000075]
[1750813951064,0.20005024,2458.6,2458.2,4.87000075]
[1750813951270,0.20005024,2458.5,2458.2,4.87000075]
[1750813951474,4.06735994,2458.6,2458.2,4.87000075]
[1750813951673,0.20005015,2458.5,2458.2,4.87000075]
[1750813951851,4.06735994,2458.6,2458.2,4.87000075]
[1750813952373,0.20005245,2458.5,2458.2,0.802]
[1750813952575,4.06735994,2458.6,2458.2,0.802]
[1750813952776,0.20005242,2458.5,2458.2,0.802]
[1750813953073,4.06735994,2458.6,2458.2,0.802]
[1750813953276,0.20005647,2458.5,2458.2,0.802]
[1750813953572,4.06735994,2458.6,2458.2,0.802]
[1750813954048,2.614,2459.1,2458.2,1.96410464]
[1750813954249,0.20004931,2459.0,2458.8,4.06692429]
[1750813954574,0.827,2459.5,2458.9,4.86125311]
[1750813954872,10.0,2459.4,2459.0,4.06658306]